bitfinex-derivatives/quotes_SOLF0:USTF0_20250624
["timestamp","ask_amount","ask_price","bid_price","bid_amount"]
[1750749418994,36.1,146.01,145.98,6.8457]
[1750749419491,36.1,146.01,145.95,5.62725023]
[1750749419686,36.1,146.01,145.94,36.1]
[1750749420292,41.72725023,146.01,145.92,5.62725023]
[1750749421187,6.8458,145.98,145.94,6.8472]
[1750749421396,41.72725023,146.01,145.92,5.62725023]
[1750749421787,6.8457,145.99,145.92,5.62725023]
[1750749422289,6.8454,146.0,145.95,6.847]
[1750749422484,36.1,146.01,145.95,6.847]
[1750749422988,6.8457,145.99,145.95,6.847]
[1750749423288,36.1,146.01,145.94,6.8475]
[1750749423785,6.8457,145.99,145.95,6.8471]
[1750749424294,6.846,145.98,145.94,6.8476]
[1750749424693,36.1,146.01,145.92,5.62725023]
[1750749424993,36.1,146.01,145.91,36.1]
[1750749425194,5.62725023,146.0,145.91,36.1]
[1750749425390,6.8466,145.97,145.93,6.848]
[1750749425591,42.9466,145.97,145.93,6.848]
[1750749427095,36.1,145.97,145.94,6.8477]
[1750749427791,42.9464,145.97,145.93,6.848]
[1750749427992,36.1,145.97,145.91,41.72725023]
[1750749428990,36.1,145.97,145.91,36.1]
[1750749429191,4.5868,145.99,145.93,5.62725023]
[1750749429495,36.1,146.0,145.96,6.8465]
[1750749430299,42.945,146.0,145.96,6.8465]
[1750749430489,36.1,146.0,145.95,6.847]
[1750749430690,36.1,146.0,145.93,5.62725023]
[1750749430893,6.8459,145.98,145.93,5.62725023]
[1750749431199,36.1,146.0,145.94,6.8474]
[1750749431400,6.8457,145.99,145.94,6.8474]
[1750749431696,6.8457,145.99,145.95,6.8468]
[1750749432097,6.8459,145.98,145.94,6.8475]
[1750749432398,3.37669381,145.98,145.91,36.1]
[1750749432601,10.22279381,145.98,145.93,6.8478]
[1750749432896,3.37669381,145.98,145.93,6.8478]
[1750749433698,6.8466,145.97,145.93,6.8478]
[1750749433998,36.1,145.96,145.92,6.8484]
[1750749434199,42.947,145.96,145.92,6.8484]
[1750749435202,42.947,145.96,145.91,10.22569381]
[1750749435400,42.947,145.96,145.91,6.849]
[1750749436997,42.947,145.96,145.92,6.8485]
[1750749438305,36.1,145.96,145.89,3.37669381]
[1750749438506,36.1,145.96,145.91,3.37669381]
[1750749439003,36.1,145.96,145.93,6.8479]
[1750749440907,36.1,145.96,145.92,6.8484]
[1750749442008,36.1,145.96,145.93,6.848]
[1750749442901,36.1,145.96,145.91,3.37669381]
[1750749442902,36.1,145.96,145.94,6.8476]
[1750749443308,36.1,145.96,145.93,6.848]
[1750749446309,36.1,145.96,145.91,3.37669381]
[1750749446310,36.1,145.96,145.94,6.8477]
[1750749447004,36.1,145.96,145.95,6.8473]
[1750749447211,35.84,145.99,145.93,3.37669381]
[1750749447710,35.84,145.99,145.97,6.846]
[1750749448805,35.84,145.99,145.96,6.8464]
[1750749449111,35.84,145.99,145.94,3.37669381]
[1750749449414,35.84,145.99,145.97,6.8462]
[1750749450012,35.84,145.99,145.98,6.8459]
[1750749450416,35.84,145.99,145.94,3.37669381]
[1750749450921,35.84,145.99,145.98,6.8459]
[1750749452520,35.84,146.02,145.96,3.37669381]
[1750749454226,35.84,146.02,145.99,6.8453]
[1750749454414,35.84,146.02,145.98,3.37669381]
[1750749455223,35.84,146.02,146.01,6.8445]
[1750749455418,168.75720062,146.05,146.01,6.8445]
[1750749455626,8.1198182,146.04,145.96,35.84]
[1750749455927,35.84,146.08,146.02,3.37669381]
[1750749456111,35.84,146.08,146.07,6.8416]
[1750749456315,39.21669381,146.11,146.07,6.8416]
[1750749456514,42.6787,146.14,146.08,3.37669381]
[1750749456723,12.99501227,146.13,146.05,35.84]
[1750749457019,12.99501227,146.13,146.05,39.21669381]
[1750749457020,8.10974958,146.12,146.05,39.21669381]
[1750749457235,591.42,146.16,146.09,3.37669381]
[1750749457526,43.96730577,146.15,146.09,3.37669381]
[1750749457728,2.51329211,146.14,146.09,3.37669381]
[1750749457927,35.84,146.15,146.12,6.839]
[1750749458224,35.84,146.15,146.09,5.6136775]
[1750749459221,4.3679,146.18,146.11,5.6136775]
[1750749459523,35.82,146.18,146.09,35.82]
[1750749459723,35.82,146.18,146.1,5.6136775]
[1750749460324,42.6566,146.18,146.12,6.8391]
[1750749460718,42.6566,146.18,146.1,5.6136775]
[1750749460925,42.6566,146.18,146.13,6.8387]
[1750749462515,42.6566,146.18,146.14,6.8383]
[1750749462923,35.82,146.18,146.09,41.4336775]
[1750749463127,35.82,146.18,146.11,5.6136775]
[1750749463829,35.82,146.18,146.15,6.8375]
[1750749464622,35.82,146.18,146.16,6.8374]
[1750749464826,35.82,146.18,146.11,5.6136775]
[1750749465027,35.82,146.18,146.1,5.6136775]
[1750749465727,41.4336775,146.18,146.06,6.8122]
[1750749465921,41.4336775,146.18,146.08,35.8]
[1750749466118,6.8377,146.16,146.11,6.8398]
[1750749466315,5.6136775,146.16,146.08,35.8]
[1750749466823,6.8382,146.15,146.08,35.8]
[1750749467130,35.8,146.14,146.08,35.8]
[1750749467624,35.8,146.14,146.11,6.8394]
[1750749467828,35.8,146.14,146.08,35.8]
[1750749468128,35.8,146.17,146.08,35.8]
[1750749468329,35.8,146.17,146.13,6.8385]
[1750749470936,35.8,146.17,146.14,6.8383]
[1750749472726,35.8,146.17,146.09,5.6136775]
[1750749473825,35.8,146.17,146.14,6.838]
[1750749474224,35.8,146.17,146.11,5.6136775]
[1750749474431,49.3431,146.2,146.16,6.8372]
[1750749475125,49.3431,146.2,146.15,6.8377]
[1750749475431,49.3431,146.2,146.11,5.6136775]
[1750749476140,42.5073,146.2,146.11,5.6136775]
[1750749476839,35.8,146.2,146.13,5.6136775]
[1750749477036,35.8,146.2,146.13,41.1536775]
[1750749477231,596.9136775,146.23,146.15,5.6136775]
[1750749477437,626.84,146.23,146.15,5.6136775]
[1750749478033,633.6744,146.23,146.15,5.6136775]
[1750749478434,5.6136775,146.21,146.15,6.8376]
[1750749479028,6.8363,146.19,146.15,6.8376]
[1750749479329,5.6136775,146.21,146.1,41.1536775]
[1750749479529,42.3767,146.18,146.1,41.1536775]
[1750749479831,42.3767,146.18,146.14,6.8381]
[1750749480630,35.54,146.18,146.15,6.8378]
[1750749481237,42.3765,146.18,146.15,6.8378]
[1750749481639,35.54,146.18,146.1,41.1536775]
[1750749482239,35.54,146.18,146.15,6.8376]
[1750749482940,42.3768,146.18,146.14,6.8383]
[1750749483441,6.8371,146.17,146.14,6.8383]
[1750749483935,42.3767,146.18,146.14,6.8383]
[1750749484144,42.3767,146.18,146.15,6.8378]
[1750749484439,3.36899517,146.16,146.02,13.6873]
[1750749484637,35.54,146.18,146.06,3.36899517]
[1750749484638,3.36899517,146.14,146.06,3.36899517]
[1750749484944,35.54,146.14,146.09,3.36949492]
[1750749485234,42.6106,146.17,146.11,3.36949492]
[1750749485442,40.2813,146.17,146.11,3.36949492]
[1750749485943,35.54,146.17,146.11,3.36949492]
[1750749486748,35.54,146.17,146.15,6.8378]
[1750749487335,35.54,146.17,146.14,6.8382]
[1750749487841,42.3771,146.17,146.11,3.36949492]
[1750749488049,35.54,146.17,146.13,6.8387]
[1750749488541,35.54,146.17,146.11,3.36949492]
[1750749488741,42.3773,146.17,146.11,3.36949492]
[1750749489238,35.54,146.17,146.11,3.36949492]
[1750749489944,42.377,146.17,146.14,6.8384]
[1750749491046,35.54,146.2,146.13,3.36949492]
[1750749491241,35.54,146.2,146.15,3.36949492]
[1750749491451,42.3756,146.2,146.16,6.8372]
[1750749492138,42.3756,146.2,146.17,6.8369]
[1750749494250,42.3756,146.2,146.16,6.8373]
[1750749495751,6.8361,146.19,146.16,6.8373]
[1750749496851,42.3758,146.2,146.17,6.8369]
[1750749497448,42.3758,146.2,146.18,6.8365]
[1750749497449,5.60377197,146.19,146.18,6.8365]
[1750749497646,35.54,146.2,146.18,6.8365]
[1750749498155,35.54,146.2,146.17,6.8368]
[1750749498363,5.61050111,146.19,146.15,3.36949492]
[1750749498652,35.54,146.2,146.19,6.8361]
[1750749498954,626.84,146.23,146.17,3.36949492]
[1750749499150,5.58458769,146.22,146.17,3.36949492]
[1750749499453,35.54,146.23,146.22,6.8347]
[1750749499650,41.1322076,146.23,146.22,6.8347]
[1750749499850,8.0824966,146.23,146.22,6.8347]
[1750749500946,5.5922076,146.23,146.22,6.8347]
[1750749502355,35.54,146.29,146.21,3.36949492]
[1750749502549,2.48531869,146.28,146.21,3.36949492]
[1750749502753,2.48531869,146.27,146.21,3.36949492]
[1750749503053,2.48531869,146.26,146.21,3.36949492]
[1750749503256,35.54,146.29,146.21,3.36949492]
[1750749503450,2.48567386,146.28,146.27,6.8323]
[1750749503645,7.33898536,146.28,146.27,6.8323]
[1750749503850,2.48567386,146.28,146.27,6.8323]
[1750749504453,35.54,146.29,146.28,6.8319]
[1750749504753,38.02849989,146.29,146.28,6.8319]
[1750749505256,35.54,146.29,146.28,6.8319]
[1750749505859,35.54,146.29,146.27,6.8322]
[1750749506462,38.90949492,146.29,146.21,35.54]
[1750749506760,2.48405633,146.28,146.21,35.54]
[1750749506959,35.54,146.29,146.26,6.8326]
[1750749507259,35.54,146.29,146.22,3.36949492]
[1750749508053,3.36949492,146.28,146.21,35.54]
[1750749508257,3.36949492,146.28,146.2,3.36949492]
[1750749508459,6.8327,146.27,146.23,6.8339]
[1750749508762,3.36949492,146.28,146.23,6.8339]
[1750749509755,6.8329,146.26,146.23,6.8339]
[1750749509958,3.36949492,146.28,146.22,6.8345]
[1750749511061,6.8335,146.25,146.22,6.8345]
[1750749511462,35.56,146.25,146.23,6.8342]
[1750749511660,35.56,146.25,146.2,3.36949492]
[1750749512164,35.56,146.25,146.23,6.8339]
[1750749513068,35.56,146.25,146.22,6.8345]
[1750749516052,35.56,146.25,146.2,3.36949492]
[1750749516964,35.56,146.25,146.24,6.8338]
[1750749517267,10.20159492,146.28,146.22,3.36949492]
[1750749517268,35.56,146.28,146.22,3.36949492]
[1750749517464,35.56,146.28,146.24,3.36949492]
[1750749517668,35.56,146.28,146.27,6.8324]
[1750749519568,35.54,146.31,146.29,6.8312]
[1750749520468,35.54,146.31,146.3,6.831]
[1750749521974,40.1914,146.34,146.28,3.36949492]
[1750749522175,35.54,146.34,146.28,3.36949492]
[1750749523175,35.54,146.34,146.26,35.54]
[1750749523176,35.54,146.34,146.3,3.36949492]
[1750749523570,35.54,146.34,146.33,6.8296]
[1750749523776,11.62350191,146.37,146.33,6.8296]
[1750749523777,47.16350191,146.37,146.33,6.8296]
[1750749523980,6.8282,146.36,146.33,6.8296]
[1750749524171,37.8455,146.37,146.26,35.54]
[1750749524376,37.8455,146.37,146.3,3.36949492]
[1750749524979,44.6735,146.37,146.3,3.36949492]
[1750749525181,37.8455,146.37,146.3,3.36949492]
[1750749525581,44.6733,146.37,146.34,6.8289]
[1750749525766,44.6733,146.37,146.26,35.54]
[1750749525767,35.54,146.37,146.32,3.36949492]
[1750749526474,14.79069492,146.39,146.32,3.36949492]
[1750749526771,14.79069492,146.39,146.36,6.8282]
[1750749527285,50.33069492,146.39,146.36,6.8282]
[1750749527581,6.8274,146.38,146.34,6.8288]
[1750749527880,6.8274,146.38,146.32,3.36949492]
[1750749528477,40.1342,146.39,146.3,35.54]
[1750749528478,6.8287,146.36,146.3,35.54]
[1750749528681,6.8287,146.36,146.3,38.90949492]
[1750749528884,40.1342,146.39,146.3,38.90949492]
[1750749529080,6.8275,146.38,146.32,3.36949492]
[1750749529270,43.50369492,146.39,146.32,3.36949492]
[1750749530281,43.50369492,146.39,146.31,3.36949492]
[1750749530681,6.8284,146.36,146.33,6.8293]
[1750749531188,6.8293,146.34,146.31,6.8305]
[1750749531391,3.36949492,146.33,146.25,45.68489492]
[1750749531581,8.10149492,146.33,146.25,45.68489492]
[1750749531783,6.8309,146.31,146.28,6.8319]
[1750749532289,8.10149492,146.33,146.25,45.68489492]
[1750749532290,6.8304,146.32,146.29,6.8315]
[1750749532586,6.8304,146.32,146.25,45.68489492]
[1750749533088,6.8307,146.31,146.28,6.8318]
[1750749533288,8.10149492,146.33,146.25,45.68489492]
[1750749533580,8.10149492,146.33,146.29,6.8313]
[1750749533581,6.8303,146.32,146.29,6.8313]
[1750749533790,4.732,146.33,146.27,3.36949492]
[1750749534290,11.5617,146.33,146.3,6.8308]
[1750749534483,4.732,146.33,146.3,6.8308]
[1750749534887,4.732,146.33,146.25,42.3154]
[1750749535087,4.732,146.33,146.27,3.36949492]
[1750749535284,2.3094,146.38,146.27,3.36949492]
[1750749535486,38.90949492,146.37,146.31,6.8302]
[1750749535983,6.829,146.35,146.31,6.8302]
[1750749536487,6.829,146.35,146.32,6.83]
[1750749538795,38.90949492,146.37,146.29,3.36949492]
[1750749539092,38.02927881,146.37,146.27,3.36949492]
[1750749539284,3.36949492,146.35,146.27,3.36949492]
[1750749539688,6.8295,146.34,146.27,3.36949492]
[1750749539890,35.34,146.33,146.27,3.36949492]
[1750749540086,6.8304,146.32,146.26,3.36949492]
[1750749540297,35.34,146.33,146.26,3.36949492]
[1750749540489,35.34,146.33,146.28,3.36949492]
[1750749542193,35.34,146.33,146.32,6.8302]
[1750749543092,35.34,146.36,146.3,3.36949492]
[1750749543699,35.34,146.36,146.32,3.36949492]
[1750749544001,35.34,146.36,146.35,6.8288]
[1750749544693,35.34,146.36,146.34,6.829]
[1750749545592,35.34,146.36,146.35,6.8288]
[1750749545791,35.34,146.36,146.32,3.36949492]
[1750749546493,10.19669492,146.39,146.32,3.36949492]
[1750749546698,42.1672,146.39,146.32,3.36949492]
[1750749547498,6.8275,146.38,146.32,3.36949492]
[1750749547695,3.36949492,146.37,146.25,20.4422]
[1750749547900,3.36949492,146.33,146.25,42.0954]
[1750749548095,35.32,146.32,146.26,3.36949492]
[1750749549098,35.32,146.32,146.3,6.8311]
[1750749549802,35.32,146.32,146.3,6.8309]
[1750749550794,35.32,146.32,146.31,6.8306]
[1750749551806,35.32,146.32,146.3,6.8309]
[1750749552808,42.1502,146.32,146.3,6.8309]
[1750749553699,35.32,146.32,146.3,6.8309]
[1750749553906,38.68949492,146.32,146.23,3.36949492]
[1750749554107,10.20039492,146.31,146.23,3.36949492]
[1750749554706,10.20039492,146.31,146.28,6.8318]
[1750749555111,3.36949492,146.31,146.28,6.8318]
[1750749555405,3.36949492,146.31,146.27,6.8324]
[1750749555602,6.8319,146.29,146.23,3.36949492]
[1750749555800,3.36949492,146.31,146.23,3.36949492]
[1750749556000,3.36949492,146.29,146.19,35.34]
[1750749556200,6.8329,146.27,146.2,3.36949492]
[1750749556507,6.8329,146.27,146.24,6.8339]
[1750749557201,42.1722,146.28,146.24,6.8339]
[1750749557607,35.34,146.28,146.23,6.8342]
[1750749557807,6.8325,146.27,146.2,3.36949492]
[1750749558402,3.36949492,146.25,146.18,8.07759492]
[1750749558593,35.34,146.24,146.18,3.36949492]
[1750749558794,35.34,146.24,146.17,5.71229492]
[1750749559609,35.34,146.24,146.21,6.8349]
[1750749560309,42.1739,146.24,146.21,6.8349]
[1750749560507,35.34,146.24,146.2,6.8356]
[1750749561008,3.36949492,146.23,146.16,38.70949492]
[1750749561201,3.36949492,146.21,146.15,123.07149362]
[1750749561408,35.34,146.2,146.15,123.07149362]
[1750749561802,35.34,146.2,146.13,41.02189492]
[1750749562511,42.1759,146.2,146.17,6.8369]
[1750749563108,35.34,146.2,146.18,6.8367]
[1750749564016,35.34,146.2,146.13,38.70949492]
[1750749564517,45.54559492,146.2,146.16,6.8372]
[1750749565108,45.54559492,146.2,146.17,6.8371]
[1750749565510,35.34,146.2,146.13,38.70949492]
[1750749568321,42.1761,146.2,146.13,38.70949492]
[1750749568824,42.1761,146.2,146.16,6.8372]
[1750749569016,42.1761,146.2,146.13,38.70949492]
[1750749569820,42.1761,146.2,146.17,6.8371]
[1750749570022,6.8363,146.19,146.13,3.36949492]
[1750749570215,3.36949492,146.18,146.1,4.5574]
[1750749570516,6.8373,146.17,146.1,4.5574]
[1750749570712,35.26,146.16,146.1,4.5574]
[1750749571121,35.26,146.16,146.14,6.8382]
[1750749571420,35.26,146.16,146.1,4.5574]
[1750749571622,38.62949492,146.16,146.07,3.36949492]
[1750749571807,3.36949492,146.14,146.07,3.36949492]
[1750749572213,10.20839492,146.14,146.07,3.36949492]
[1750749572714,3.36949492,146.14,146.05,38.62949492]
[1750749573327,3.36949492,146.12,146.03,3.36949492]
[1750749573517,3.36949492,146.1,146.03,3.36949492]
[1750749573719,35.26,146.11,145.98,4.5987]
[1750749573720,3.37249397,146.07,145.98,4.5987]
[1750749574020,3.37469941,146.04,145.97,2.1735]
[1750749574225,35.26,146.03,145.96,3.37469941]
[1750749574425,3.37469941,146.02,145.95,35.26]
[1750749574614,3.37469941,146.02,145.94,3.37469941]
[1750749575119,37.5534,146.03,145.96,3.37469941]
[1750749575323,44.3973,146.03,145.96,3.37469941]
[1750749575718,37.5534,146.03,145.96,3.37469941]
[1750749576419,35.26,146.03,145.95,5.62463487]
[1750749577718,35.26,146.03,145.97,5.62463487]
[1750749578112,35.28,146.06,145.99,5.62463487]
[1750749578620,35.28,146.06,146.05,6.8428]
[1750749578815,35.28,146.06,145.99,5.62463487]
[1750749579011,35.28,146.06,146.03,6.8432]
[1750749579321,35.28,146.06,145.99,5.62463487]
[1750749579525,35.28,146.06,145.96,35.28]
[1750749579723,35.28,146.06,146.03,6.8432]
[1750749580018,35.28,146.06,146.0,5.62463487]
[1750749580416,35.28,146.06,146.05,6.8425]
[1750749581126,35.28,146.06,146.0,5.62463487]
[1750749581127,35.3,146.09,146.01,6.8207]
[1750749581724,35.3,146.09,146.02,5.62463487]
[1750749582020,35.3,146.09,146.04,5.62463487]
[1750749582226,35.3,146.09,146.08,6.8411]
[1750749582523,35.3,146.09,146.02,5.62463487]
[1750749582822,35.3,146.09,146.07,6.8413]
[1750749583523,35.3,146.09,146.06,6.8419]
[1750749585727,35.3,146.09,146.07,6.8415]
[1750749587130,35.3,146.09,146.02,5.62463487]
[1750749587928,35.3,146.09,146.08,6.8411]
[1750749588924,35.3,146.09,146.07,6.8415]
[1750749589833,35.3,146.09,146.08,6.8411]
[1750749590128,40.92463487,146.09,146.01,6.8207]
[1750749590535,47.76543487,146.09,146.01,6.8207]
[1750749591132,6.8412,146.08,146.05,6.8421]
[1750749591327,40.92463487,146.09,146.05,6.8421]
[1750749591627,35.3,146.09,146.02,5.62463487]
[1750749592332,35.3,146.09,146.07,6.8412]
[1750749593630,35.3,146.09,146.08,6.8411]
[1750749593831,35.3,146.12,146.04,40.92463487]
[1750749594027,35.3,146.12,146.11,6.8397]
[1750749595237,35.3,146.12,146.06,5.62463487]
[1750749597433,35.3,146.15,146.06,5.62463487]
[1750749597637,35.3,146.15,146.07,2.3085]
[1750749597841,35.3,146.15,146.08,40.92463487]
[1750749598035,35.3,146.15,146.08,43.21923487]
[1750749598334,35.3,146.15,146.14,6.8383]
[1750749598739,35.3,146.15,146.08,3.36829239]
[1750749598943,42.1381,146.15,146.11,6.8395]
[1750749599641,6.8384,146.14,146.11,6.8395]
[1750749600242,6.8389,146.13,146.1,6.8401]
[1750749600744,6.8389,146.13,146.1,6.8402]
[1750749600946,38.66829239,146.15,146.08,3.36829239]
[1750749601347,6.8386,146.14,146.11,6.8395]
[1750749601740,35.3,146.15,146.08,3.36829239]
[1750749601944,35.36,146.18,146.12,3.36829239]
[1750749602648,35.36,146.18,146.15,6.8376]
[1750749602848,3.36829239,146.16,146.08,38.72829239]
[1750749603350,6.838,146.15,146.12,6.8391]
[1750749603542,3.36829239,146.16,146.08,38.72829239]
[1750749603946,6.8387,146.14,146.11,6.8398]
[1750749604452,6.8387,146.14,146.08,38.72829239]
[1750749604453,3.36829239,146.15,146.08,38.72829239]
[1750749604841,6.8385,146.14,146.11,6.8395]
[1750749605148,42.1985,146.14,146.11,6.8395]
[1750749605645,35.36,146.14,146.08,38.72829239]
[1750749605842,38.72829239,146.17,146.1,3.36829239]
[1750749607236,38.72829239,146.17,146.08,35.36]
[1750749607237,2.47457274,146.19,146.12,3.36829239]
[1750749607443,35.36,146.19,146.12,3.36829239]
[1750749607938,35.36,146.19,146.17,6.837]
[1750749609452,35.36,146.19,146.17,6.8367]
[1750749609843,42.1962,146.19,146.17,6.8367]
[1750749610149,35.36,146.19,146.17,6.8367]
[1750749611651,42.1961,146.19,146.17,6.8367]
[1750749612250,42.1961,146.19,146.16,6.8372]
[1750749612950,35.36,146.19,146.12,38.72829239]
[1750749613551,42.1963,146.19,146.12,38.72829239]
[1750749614242,35.36,146.19,146.17,6.8369]
[1750749614955,35.36,146.19,146.18,6.8365]
[1750749615149,35.36,146.22,146.16,3.36829239]
[1750749615453,6.8355,146.21,146.18,6.8361]
[1750749615949,6.836,146.2,146.17,6.8369]
[1750749616139,3.36829239,146.21,146.17,6.8369]
[1750749616946,3.36829239,146.21,146.16,6.8374]
[1750749617145,3.36829239,146.21,146.13,10.24159239]
[1750749617648,6.8358,146.2,146.17,6.8369]
[1750749618343,6.8362,146.19,146.17,6.8369]
[1750749620550,3.36829239,146.21,146.12,35.36]
[1750749620853,5.63169239,146.21,146.12,38.72829239]
[1750749621154,6.8363,146.19,146.12,38.72829239]
[1750749621849,6.8363,146.19,146.16,6.8372]
[1750749622046,6.8359,146.2,146.12,38.72829239]
[1750749622354,35.36,146.22,146.16,3.36829239]
[1750749622950,38.72829239,146.22,146.14,3.36829239]
[1750749623456,6.8361,146.19,146.16,6.8371]
[1750749624151,38.70829239,146.18,146.11,35.34]
[1750749624463,3.36829239,146.16,146.09,5.70649239]
[1750749624754,3.36829239,146.16,146.08,35.34]
[1750749625155,3.36829239,146.14,146.11,6.8395]
[1750749625355,38.70829239,146.14,146.11,6.8395]
[1750749625854,35.34,146.14,146.08,35.34]
[1750749626457,35.34,146.14,146.12,6.8391]
[1750749628454,35.34,146.14,146.13,6.8389]
[1750749630852,35.42,146.17,146.11,3.36829239]
[1750749631458,35.42,146.17,146.15,6.8377]
[1750749632259,35.42,146.17,146.16,6.8375]
[1750749633160,42.2557,146.2,146.17,6.8366]
[1750749633663,35.42,146.2,146.15,3.36829239]
[1750749634362,35.42,146.2,146.19,6.8361]
[1750749635560,41.08819239,146.23,146.17,3.36829239]
[1750749635958,41.08819239,146.23,146.15,3.36829239]
[1750749636149,3.36829239,146.21,146.14,6.8718]
[1750749636353,37.7199,146.23,146.18,6.8362]
[1750749636564,6.8353,146.21,146.18,6.8362]
[1750749637256,41.08819239,146.23,146.13,35.42]
[1750749637461,2.48630708,146.22,146.16,3.36829239]
[1750749637662,41.08819239,146.23,146.16,3.36829239]
[1750749637959,2.49259953,146.22,146.16,3.36829239]
[1750749638170,37.7199,146.23,146.16,3.36829239]
[1750749638465,6.8347,146.22,146.19,6.8357]
[1750749641168,2.49355585,146.21,146.14,3.36829239]
[1750749641363,5.86184824,146.2,146.13,35.42]
[1750749641562,6.8368,146.18,146.15,6.8377]
[1750749641763,3.36829239,146.18,146.11,12.70767019]
[1750749641965,5.63769239,146.18,146.11,12.70767019]
[1750749642266,6.8378,146.16,146.11,12.70767019]
[1750749642663,3.36829239,146.14,146.11,12.70767019]
[1750749643069,3.36829239,146.14,146.07,4.4528]
[1750749643269,3.36829239,146.14,146.1,6.84]
[1750749644469,3.36829239,146.14,146.12,6.8393]
[1750749644668,35.4,146.15,146.08,3.36829239]
[1750749645169,42.2379,146.15,146.08,3.36829239]
[1750749645572,35.4,146.15,146.08,3.36829239]
[1750749645774,35.4,146.15,146.08,38.76829239]
[1750749646175,35.4,146.15,146.13,6.8386]
[1750749646575,35.4,146.15,146.1,3.36829239]
[1750749648377,35.4,146.15,146.14,6.8384]
[1750749648676,42.2367,146.18,146.12,3.36829239]
[1750749649782,42.2367,146.18,146.15,6.8378]
[1750749650076,35.4,146.18,146.14,3.36829239]
[1750749650278,37.88825934,146.21,146.17,6.8366]
[1750749650476,2.48825934,146.2,146.17,6.8366]
[1750749650678,6.8359,146.2,146.17,6.8366]
[1750749650981,35.4,146.21,146.18,6.8364]
[1750749651373,35.4,146.21,146.14,3.36829239]
[1750749651881,42.2354,146.21,146.14,3.36829239]
[1750749652286,35.4,146.21,146.14,3.36829239]
[1750749652877,35.4,146.21,146.16,3.36829239]
[1750749653171,42.2352,146.21,146.18,6.8362]
[1750749653374,35.4,146.21,146.16,3.36829239]
[1750749654886,35.4,146.21,146.19,6.8357]
[1750749655081,35.4,146.21,146.16,3.36829239]
[1750749655886,35.4,146.21,146.2,6.8356]
[1750749657501,35.4,146.21,146.19,6.8359]
[1750749658680,42.2351,146.21,146.18,6.8363]
[1750749658887,35.4,146.21,146.14,3.36829239]
[1750749659795,6.8356,146.2,146.17,6.8367]
[1750749660190,6.8356,146.2,146.14,3.36829239]
[1750749660490,35.4,146.21,146.14,3.36829239]
[1750749660696,35.4,146.21,146.16,3.36829239]
[1750749660996,42.2354,146.21,146.18,6.8363]
[1750749661496,35.4,146.21,146.19,6.836]
[1750749661887,35.4,146.21,146.16,3.36829239]
[1750749662496,35.4,146.21,146.2,6.8356]
[1750749662696,46.7846,146.24,146.18,3.36829239]
[1750749662899,35.36,146.24,146.18,3.36829239]
[1750749663196,35.36,146.24,146.2,3.36829239]
[1750749663395,35.36,146.24,146.23,6.8342]
[1750749664098,35.36,146.24,146.22,6.8343]
[1750749664496,35.36,146.24,146.2,3.36829239]
[1750749664698,35.36,146.24,146.23,6.8342]
[1750749667207,35.36,146.27,146.22,3.36829239]
[1750749668504,35.36,146.27,146.26,6.8328]
[1750749668907,35.34,146.3,146.24,3.36829239]
[1750749669097,35.34,146.3,146.28,6.8316]
[1750749669304,3.36829239,146.35,146.24,35.34]
[1750749669497,3.36829239,146.35,146.27,3.36829239]
[1750749669498,37.82536805,146.34,146.27,3.36829239]
[1750749669698,2.48536805,146.33,146.27,3.36829239]
[1750749670001,2.48544179,146.32,146.25,3.36829239]
[1750749670204,6.8307,146.31,146.27,6.832]
[1750749670394,35.34,146.3,146.25,3.36829239]